fUSD/lending_fUSD_20250523
["ID","MTS","AMOUNT","RATE_DAILY","PERIOD"]
[362069072,1747968644055,-323.273991,0.00030273,7]
[362069073,1747968644064,-420.0,0.00030273,5]
[362069074,1747968644074,-323.273991,0.00030273,7]
[362069075,1747968644083,-420.0,0.00030273,5]
[362069076,1747968644092,-151.0,0.00030273,7]
[362069077,1747968644101,-151.0,0.00030273,7]
[362069078,1747968644111,-420.0,0.00030273,5]
[362069079,1747968644120,-420.0,0.00030273,5]
[362069080,1747968644129,-151.0,0.00030273,7]
[362069081,1747968644139,-420.0,0.00030273,5]
[362069082,1747968644148,-151.0,0.00030273,7]
[362069083,1747968644158,-285.795773,0.00030273,7]
[362069084,1747968644167,-420.0,0.00030273,5]
[362069085,1747968644177,-420.0,0.00030273,5]
[362069086,1747968644186,-331.833236,0.00030273,7]
[362069087,1747968644195,-151.0,0.00030273,7]
[362069088,1747968644205,-151.0,0.00030273,7]
[362069089,1747968644215,-151.0,0.00030273,7]
[362069090,1747968644224,-420.0,0.00030273,5]
[362069091,1747968644235,-420.0,0.00030273,5]
[362069092,1747968644244,-420.0,0.00030273,5]
[362069093,1747968644253,-420.0,0.00030273,5]
[362069094,1747968644263,-420.0,0.00030273,5]
[362069095,1747968644272,-556.416723,0.00030273,7]
[362069096,1747968644281,-420.0,0.00030273,5]
[362069097,1747968644291,-420.0,0.00030273,5]
[362069098,1747968644300,-420.0,0.00030273,5]
[362069099,1747968644310,-151.0,0.00030273,7]
[362069100,1747968644319,-151.0,0.00030273,7]
[362069101,1747968644332,-154.109727,0.00030273,7]
[362069102,1747968644341,-151.0,0.00030273,7]
[362069103,1747968644350,-151.0,0.00030273,7]
[362069104,1747968644359,-151.0,0.00030273,7]
[362069105,1747968644369,-420.0,0.00030273,5]
[362069106,1747968644378,-151.0,0.00030273,7]
[362069107,1747968644387,-151.0,0.00030273,7]
[362069108,1747968644397,-220.169756,0.00030273,7]
[362069109,1747968644406,-200.19595,0.00030273,7]
[362069110,1747968644416,-200.19595,0.00030273,7]
[362069111,1747968644426,-200.19595,0.00030273,7]
[362069112,1747968644435,-200.19595,0.00030273,7]
[362069113,1747968644444,-156.7434,0.00030273,7]
[362069114,1747968644453,-151.0,0.00030273,7]
[362069115,1747968644463,-151.0,0.00030273,7]
[362069116,1747968644472,-151.0,0.00030273,7]
[362069117,1747968644483,-151.0,0.00030273,7]
[362069118,1747968644493,-151.0,0.00030273,7]
[362069119,1747968644503,-151.0,0.00030273,7]
[362069120,1747968644512,-151.0,0.00030273,7]
[362069121,1747968644521,-151.0,0.00030273,7]
[362069122,1747968644531,-151.0,0.00030273,7]
[362069123,1747968644540,-197.199752,0.00030273,7]
[362069124,1747968644550,-153.319403,0.00030273,7]
[362069125,1747968644560,-151.0,0.00030273,7]
[362069126,1747968644570,-151.0,0.00030273,7]
[362069127,1747968644580,-151.0,0.00030273,7]
[362069128,1747968644590,-151.0,0.00030273,7]
[362069129,1747968644600,-151.0,0.00030273,7]
[362069130,1747968644610,-151.0,0.00030273,7]
[362069131,1747968644620,-151.0,0.00030273,7]
[362069132,1747968644629,-151.0,0.00030273,7]
[362069133,1747968644639,-383.961785,0.00030273,7]
[362069134,1747968644648,-383.961785,0.00030273,7]
[362069135,1747968644658,-383.961785,0.00030273,7]
[362069136,1747968644667,-383.961785,0.00030273,7]
[362069137,1747968644677,-151.0,0.00030273,7]
[362069138,1747968644686,-151.0,0.00030273,7]
[362069139,1747968644696,-151.0,0.00030273,7]
[362069140,1747968644706,-151.0,0.00030273,7]
[362069141,1747968644716,-151.0,0.00030273,7]
[362069142,1747968644725,-151.0,0.00030273,7]
[362069143,1747968644735,-3309.476027,0.00030273,7]
[362069144,1747968644745,-3309.476027,0.00030273,7]
[362069145,1747968644755,-3309.476027,0.00030273,7]
[362069146,1747968644765,-3309.476027,0.00030273,7]
[362069147,1747968644774,-3309.476027,0.00030273,7]
[362069148,1747968644784,-3309.476027,0.00030273,7]
[362069149,1747968644793,-153.690125,0.00030273,7]
[362069150,1747968644803,-151.0,0.00030273,7]
[362069151,1747968644812,-151.0,0.00030273,7]
[362069152,1747968644822,-255.849196,0.00030273,7]
[362069153,1747968644832,-255.849196,0.00030273,7]
[362069154,1747968644841,-255.849196,0.00030273,7]
[362069155,1747968644851,-255.849196,0.00030273,7]
[362069156,1747968644860,-151.0,0.00030273,7]
[362069157,1747968644870,-151.0,0.00030273,7]
[362069158,1747968644879,-151.0,0.00030273,7]
[362069159,1747968644889,-151.0,0.00030273,7]
[362069160,1747968644899,-154.786599,0.00030273,7]
[362069161,1747968644909,-152.991291,0.00030273,7]
[362069162,1747968644919,-198.390681,0.00030273,7]
[362069163,1747968644928,-198.390681,0.00030273,7]
[362069164,1747968644938,-198.390681,0.00030273,7]
[362069165,1747968644948,-198.390681,0.00030273,7]
[362069166,1747968644957,-264.145508,0.00030273,7]
[362069167,1747968644967,-264.145508,0.00030273,7]
[362069168,1747968644976,-264.145508,0.00030273,7]
[362069169,1747968644987,-264.145508,0.00030273,7]
[362069170,1747968644997,-151.0,0.00030273,7]
[362069171,1747968645007,-242.85434,0.00030273,7]
[362069172,1747968645017,-151.0,0.00030273,7]
[362069173,1747968645026,-151.0,0.00030273,7]
[362069174,1747968645036,-151.0,0.00030273,7]
[362069175,1747968645045,-253.661572,0.00030273,7]
[362069176,1747968645055,-155.0,0.00030273,2]
[362069177,1747968645064,-151.0,0.00030273,7]
[362069178,1747968645073,-151.0,0.00030273,7]
[362069179,1747968645083,-151.0,0.00030273,7]
[362069180,1747968645092,-151.0,0.00030273,7]
[362069181,1747968645102,-151.0,0.00030273,7]
[362069182,1747968645112,-151.0,0.00030273,7]
[362069183,1747968645121,-151.0,0.00030273,7]
[362069184,1747968645131,-151.0,0.00030273,7]
[362069185,1747968645142,-150.0,0.0003028,2]
[362069186,1747968645151,-150.0,0.00030281,2]
[362069187,1747968645161,-290.42934843,0.00030284,2]
[362069188,1747968645170,-150.0,0.00030289,2]
[362069189,1747968645179,-150.0,0.00030314,2]
[362069190,1747968645188,-150.0,0.00030319,2]
[362069191,1747968645198,-150.0,0.00030323,2]
[362069192,1747968645207,-150.0,0.0003034,2]
[362069193,1747968645217,-4212.18682625,0.00030342,3]
[362069194,1747968645228,-372.241898,0.00030346,7]
[362069195,1747968645239,-372.241898,0.00030346,7]
[362069196,1747968645248,-150.0,0.00030347,2]
[362069197,1747968645258,-150.0,0.00030352,2]
[362069198,1747968645267,-164.56810673,0.00030357,120]
[362069199,1747968645276,-4212.18682625,0.00030359,3]
[362069200,1747968645285,-668.78,0.00030359,2]
[362069201,1747968645295,-151.0,0.00030365,7]
[362069202,1747968645304,-151.187279,0.00030367,7]
[362069203,1747968645314,-4212.18682625,0.00030369,3]
[362069204,1747968645324,-4212.18682625,0.00030369,3]
[362069205,1747968645335,-151.0,0.0003037,7]
[362069206,1747968645345,-151.0,0.0003037,7]
[362069207,1747968645355,-503.17802083,0.00030373,5]
[362069208,1747968645365,-150.0,0.00030373,2]
[362069209,1747968645374,-2351.90132284,0.00030374,3]
[362069210,1747968645392,-1860.28550341,0.00030374,3]
[362069211,1747968645403,-4212.18682625,0.00030377,3]
[362069212,1747968645413,-4212.18682625,0.00030379,3]
[362069213,1747968645422,-151.0,0.00030379,7]
[362069214,1747968645432,-151.0,0.00030379,7]
[362069215,1747968645441,-151.0,0.00030379,7]
[362069216,1747968645450,-151.0,0.00030379,7]
[362069217,1747968645459,-151.0,0.00030379,7]
[362069218,1747968645469,-151.0,0.00030379,7]
[362069219,1747968645478,-151.0,0.00030379,7]
[362069220,1747968645488,-161.394745,0.00030379,7]
[362069221,1747968645497,-157.064437,0.00030379,7]
[362069222,1747968645507,-151.0,0.00030379,7]
[362069223,1747968645516,-151.0,0.00030379,7]
[362069224,1747968645526,-151.0,0.00030379,7]
[362069225,1747968645535,-151.0,0.00030379,7]
[362069226,1747968645545,-383.961785,0.00030379,7]
[362069227,1747968645554,-383.961785,0.00030379,7]
[362069228,1747968645564,-151.0,0.00030379,7]
[362069229,1747968645573,-255.849196,0.00030379,7]
[362069230,1747968645584,-7751.37033064,0.00030379,2]
[362069231,1747968645596,-348.94963831,0.00030379,2]
[362069232,1747968645731,-151.0,0.00030273,7]
[362069233,1747968645742,-1306.15301792,0.00030379,2]
[362069234,1747968645786,-368.4252489,0.00030379,2]
[362069235,1747968645797,-1022.7992107,0.00030379,2]
[362069236,1747968645841,-20420.21158561,0.00030379,2]
[362069237,1747968645890,-41.47632313,0.00030379,2]
[362069238,1747968645901,-10665.13601246,0.00030379,2]
[362069239,1747968645913,-1611.2401,0.00030379,2]
[362069240,1747968645925,-2497.89988,0.00030379,2]
[362069241,1747968645938,-6451.01834793,0.00030379,2]
[362069242,1747968646003,-24267.7919554,0.00030379,2]
[362069243,1747968646111,-580.23405002,0.00030379,2]
[362069244,1747968646230,-697.2293642,0.00030379,2]
[362069245,1747968646242,-375.75469669,0.00030379,2]
[362069246,1747968646253,-47886.28023799,0.00030379,2]
[362069247,1747968646263,-83.15709016,0.00030379,7]
[362069248,1747968646274,-172.69210584,0.00030379,7]
[362069249,1747968646283,-198.390681,0.00030379,7]
[362069250,1747968646293,-198.390681,0.00030379,7]
[362069251,1747968646302,-959.9149036,0.00030379,2]
[362069254,1747969514002,-255.58084537,0.000136,2]
[362069255,1747969516617,-152.27,0.000136,2]
[362069256,1747969518298,-420.0,0.000136,2]
[362069257,1747969521430,-420.0,0.000136,2]
[362069258,1747969524101,-420.0,0.000136,2]
[362069259,1747969526770,-420.0,0.000136,2]
[362069260,1747969528923,-420.0,0.000136,2]
[362069261,1747969533120,-878.9501232,0.000136,2]
[362069262,1747969533142,-244.36,0.00013699,2]
[362069263,1747969533165,-244.36,0.00020187,2]
[362069264,1747969533186,-151.0,0.00023961,2]
[362069265,1747969533209,-151.0,0.0002408,2]
[362069266,1747969533230,-151.0,0.00024171,2]
[362069267,1747969533251,-538.44707405,0.000243,5]
[362069268,1747969554101,-151.0,0.00023911,2]
[362069269,1747969554123,-399.22286937,0.000243,5]
[362069270,1747969631092,-151.0,0.00024068,2]
[362069271,1747969631113,-151.0,0.00024122,2]
[362069272,1747969631133,-151.0,0.00024142,2]
[362069273,1747969631154,-100.3369992,0.00024185,2]
[362069274,1747969654106,-50.6630008,0.00024185,2]
[362069275,1747969654129,-151.0,0.00024283,2]
[362069276,1747969654152,-98.73314138,0.00025488,2]
[362069277,1747969654188,-101.26685862,0.00025488,2]
[362069278,1747969654209,-1459.0,0.000263,5]
[362069279,1747969654232,-145.57002238,0.00026676,2]
[362069286,1747969753138,-151.0,0.00024136,2]
[362069287,1747969753159,-77.46867182,0.00024173,2]
[362069288,1747969759103,-73.53132818,0.00024173,2]
[362069289,1747969759124,-87.17240382,0.000242,2]
[362069297,1747969831910,-151.0,0.00024076,2]
[362069298,1747969831919,-200.0,0.00026608,2]
[362069299,1747969831930,-98.78997762,0.00026676,2]
[362069300,1747969831939,-200.0,0.0002673,2]
[362069301,1747969831949,-200.0,0.00027313,2]
[362069302,1747969831959,-815.28,0.00027434,2]
[362069303,1747969831969,-206.0,0.00028174,2]
[362069304,1747969831978,-1000.0,0.00028733,2]
[362069305,1747969831987,-2728.51,0.00028742,2]
[362069306,1747969831997,-1500.0,0.00028818,2]
[362069307,1747969832006,-300.0,0.00028974,2]
[362069308,1747969832016,-1200.0,0.00028974,2]
[362069309,1747969832025,-5216.04,0.00028975,2]
[362069310,1747969832034,-155.38,0.00029005,2]
[362069311,1747969832044,-158.79,0.00029009,2]
[362069312,1747969832053,-158.79,0.0002902,2]
[362069313,1747969832063,-956.52,0.00029023,2]
[362069314,1747969832072,-158.79,0.00029031,2]
[362069315,1747969832082,-158.79,0.00029043,2]
[362069316,1747969832091,-158.79,0.00029054,2]
[362069317,1747969832101,-158.79,0.00029065,2]
[362069318,1747969832110,-158.79,0.00029076,2]
[362069319,1747969832120,-158.79,0.00029087,2]
[362069320,1747969832130,-158.79,0.00029098,2]
[362069321,1747969832139,-158.79,0.00029109,2]
[362069322,1747969832149,-158.79,0.00029121,2]
[362069323,1747969832159,-158.79,0.00029132,2]
[362069324,1747969832169,-158.79,0.00029143,2]
[362069325,1747969832178,-150.0,0.00029143,2]
[362069326,1747969832188,-173.34,0.00029151,2]
[362069327,1747969832198,-158.79,0.00029154,2]
[362069328,1747969832208,-165.36,0.0002927,2]
[362069329,1747969832217,-150.0,0.00029324,7]
[362069330,1747969832228,-200.0,0.0002939,2]
[362069331,1747969832238,-187.19,0.00029405,30]
[362069332,1747969832247,-403.377862,0.00029475,4]
[362069333,1747969832257,-1159.07,0.00029478,2]
[362069334,1747969832267,-170.07,0.00029478,2]
[362069335,1747969832276,-300.0,0.00029697,2]
[362069336,1747969832285,-815.28,0.00029698,2]
[362069337,1747969832294,-1159.07,0.000297,2]
[362069338,1747969832304,-2322.08,0.000297,2]
[362069339,1747969832313,-700.0,0.000298,10]
[362069340,1747969832322,-750.44293293,0.00029838,2]
[362069342,1747969832331,-3579.15953886,0.000299,7]
[362069343,1747969832341,-1400.0,0.000299,10]
[362069345,1747969832351,-200.9089791,0.000299,21]
[362069346,1747969832360,-1151.0,0.00029964,2]
[362069347,1747969832369,-18980.42052904,0.0003008,2]
[362069348,1747969832378,-1885.42668,0.0003008,2]
[362069349,1747969832388,-1795.2578,0.00030082,10]
[362069350,1747969832397,-1007.26115095,0.00030099,2]
[362069351,1747969832407,-1159.07,0.000301,2]
[362069352,1747969832415,-340.2,0.000301,2]
[362069353,1747969832425,-2334.8,0.000301,2]
[362069354,1747969832434,-1159.07,0.000301,2]
[362069355,1747969832444,-150.0,0.00030222,2]
[362069356,1747969832453,-166.66,0.00030267,2]
[362069357,1747969832463,-712.761,0.0003027,25]
[362069358,1747969832472,-420.0,0.00030271,5]
[362069359,1747969832482,-420.0,0.00030271,5]
[362069360,1747969832491,-420.0,0.00030271,5]
[362069361,1747969832501,-420.0,0.00030271,5]
[362069362,1747969832510,-420.0,0.00030271,5]
[362069363,1747969832520,-420.0,0.00030271,5]
[362069364,1747969832529,-420.0,0.00030271,5]
[362069365,1747969832538,-425.35899265,0.00030271,5]
[362069366,1747969832547,-424.2585971,0.00030271,5]
[362069367,1747969832557,-425.36307424,0.00030271,5]
[362069368,1747969832565,-420.0,0.00030271,5]
[362069369,1747969832575,-420.0,0.00030271,5]
[362069370,1747969832584,-341.82502097,0.00030271,5]
[362069371,1747969832594,-420.0,0.00030271,5]
[362069372,1747969832603,-420.0,0.00030271,5]
[362069373,1747969832612,-420.0,0.00030271,5]
[362069374,1747969832621,-151.0,0.00030273,7]
[362069375,1747969832631,-152.292109,0.00030273,7]
[362069376,1747969832640,-154.029304,0.00030273,7]
[362069377,1747969832650,-152.126909,0.00030273,7]
[362069378,1747969832660,-151.0,0.00030273,7]
[362069379,1747969832669,-152.633955,0.00030273,7]
[362069380,1747969832679,-151.0,0.00030273,7]
[362069381,1747969832688,-151.0,0.00030273,7]
[362069382,1747969832697,-151.0,0.00030273,7]
[362069383,1747969832706,-151.0,0.00030273,7]
[362069384,1747969832715,-151.0,0.00030273,7]
[362069385,1747969832723,-151.0,0.00030273,7]
[362069386,1747969832733,-151.0,0.00030273,7]
[362069387,1747969832744,-154.243049,0.00030273,7]
[362069388,1747969832757,-5092.52475187,0.00030279,2]
[362069389,1747969832766,-166.81921616,0.00030279,2]
[362069390,1747969832776,-161.17845861,0.00030288,15]
[362069391,1747969832786,-602.16264403,0.00030294,21]
[362069392,1747969832795,-210.21,0.000303,2]
[362069393,1747969832805,-150.0,0.000303,2]
[362069394,1747969832814,-2462.26293337,0.00030304,2]
[362069395,1747969832824,-150.0,0.00030306,2]
[362069396,1747969832834,-150.0,0.00030313,2]
[362069397,1747969832844,-920.59195685,0.00030347,120]
[362069398,1747969832853,-150.0,0.00030369,2]
[362069399,1747969832863,-10883.0083775,0.00030371,2]
[362069400,1747969832872,-6264.0535364,0.00030371,2]
[362069401,1747969832881,-500.0,0.00030373,5]
[362069402,1747969832890,-500.0,0.00030373,5]
[362069403,1747969832899,-500.0,0.00030373,5]
[362069404,1747969832909,-500.0,0.00030373,5]
[362069405,1747969832918,-501.50049721,0.00030373,5]
[362069406,1747969832927,-500.0,0.00030373,2]
[362069407,1747969832938,-500.0,0.00030373,5]
[362069408,1747969832947,-159.35122355,0.00030373,3]
[362069409,1747969832956,-500.0,0.00030373,5]
[362069410,1747969832965,-501.92640089,0.00030373,5]
[362069411,1747969832974,-365.01623106,0.00030373,5]
[362069412,1747969832984,-73052.836998,0.00030377,3]
[362069413,1747969832994,-586.33,0.00030378,2]
[362069414,1747969833003,-420.0,0.00030378,5]
[362069415,1747969833014,-278.4093,0.00030378,5]
[362069416,1747969833027,-420.0,0.00030378,5]
[362069417,1747969833037,-420.0,0.00030378,5]
[362069418,1747969833047,-420.0,0.00030378,5]
[362069419,1747969833056,-527.11358437,0.00030378,5]
[362069420,1747969833066,-420.0,0.00030378,5]
[362069421,1747969833079,-213.0,0.00030379,2]
[362069422,1747969833093,-261.999969,0.00030379,7]
[362069423,1747969833102,-151.0,0.00030379,7]
[362069424,1747969833112,-151.0,0.00030379,7]
[362069425,1747969833122,-1959.98938304,0.00030379,2]
[362069426,1747969833131,-1455.13136819,0.00030379,2]
[362069427,1747969833205,-421.89772044,0.00030268,2]
[362069428,1747969833215,-500.0,0.00030268,2]
[362069429,1747969833225,-425.9847081,0.00030268,2]
[362069430,1747969833235,-500.0,0.00030268,2]
[362069431,1747969833244,-500.0,0.00030268,2]
[362069432,1747969833254,-500.0,0.00030268,2]
[362069433,1747969833264,-500.0,0.00030268,2]
[362069434,1747969833273,-500.0,0.00030268,2]
[362069435,1747969833283,-500.0,0.00030268,2]
[362069436,1747969833292,-500.0,0.00030268,2]
[362069437,1747969833301,-500.0,0.00030268,2]
[362069438,1747969833311,-13844.37764368,0.00030379,2]
[362069439,1747969833320,-3000.25,0.00030379,2]
[362069440,1747969833329,-4400.98965613,0.00030379,2]
[362069442,1747969837976,-500.0,0.00030268,2]
[362069443,1747969837986,-500.0,0.00030268,2]
[362069444,1747969837995,-500.0,0.00030268,2]
[362069445,1747969838004,-303.10236239,0.00030268,2]
[362069446,1747969838014,-500.0,0.00030268,2]
[362069447,1747969838023,-500.0,0.00030268,2]
[362069448,1747969838032,-500.0,0.00030268,2]
[362069449,1747969838042,-500.0,0.00030268,2]
[362069450,1747969838053,-500.0,0.00030268,2]
[362069451,1747969838062,-500.0,0.00030268,2]
[362069452,1747969838072,-500.0,0.00030268,2]
[362069453,1747969838092,-500.0,0.00030268,2]
[362069454,1747969838115,-474.00151988,0.00030268,2]
[362069455,1747969838130,-25.99848012,0.00030268,2]
[362069456,1747969838139,-271.99851803,0.00030268,2]
[362069480,1747969840074,-228.00148197,0.00030268,2]
[362069481,1747969840084,-420.0,0.00030378,5]
[362069482,1747969840094,-420.0,0.00030378,5]
[362069483,1747969840104,-286.44851803,0.00030378,5]
[362069484,1747969840116,-359.15148197,0.00030378,5]
[362069485,1747969840125,-1649.70806487,0.00030379,2]
[362069486,1747969840362,-0.00193621,0.00030379,2]
[362069487,1747969840374,-342.4273817,0.00030379,2]
[362069488,1747969840391,-5218.94920964,0.00030379,2]
[362069504,1747969843008,-420.0,0.00030378,5]
[362069506,1747969843017,-1397.03818632,0.00030379,2]
[362069510,1747969843217,-8876.95181908,0.00030379,2]
[362069511,1747969843270,-837.15263962,0.00030379,2]
[362069528,1747969845878,-62466.81523917,0.00030379,2]
[362069529,1747969846138,-420.0,0.00030378,5]
[362069530,1747969846148,-4266.97839802,0.00030379,2]
[362069531,1747969846294,-892.16941089,0.00030379,2]
[362069702,1747970319014,150.0,0.00014,5]
[362069704,1747970337892,-265.31,0.00013699,2]
[362069732,1747970730149,-1011.04110738,0.0001499,2]
[362069733,1747970730175,-150.0,0.00014999,2]
[362069734,1747970730200,-334.71366405,0.00014999,2]
[362069735,1747970755720,10406.85926277,6.94e-05,2]
[362069736,1747970759093,-342.31963767,0.000149,2]
[362069737,1747970759121,-865.28633595,0.00014999,2]
[362069738,1747970759144,-162.0,0.00014999,2]
[362069739,1747970759169,-250.0,0.00015,2]
[362069740,1747970759194,-419.9230028,0.00015,2]
[362069741,1747970825096,-373.87333889,0.00015,2]
[362069742,1747970845104,-300.03961421,0.00015,2]
[362069743,1747970845139,-1955.71470733,0.00015,2]
[362069744,1747970858276,212.7312447,0.000274,120]
[362069745,1747970880752,2311.86729752,0.00012,2]
[362069754,1747970923808,345.57566027,0.00010136,2]
[362069755,1747970924700,-154.69,0.00013368,2]
[362069756,1747970927386,-177.36091376,0.00013368,2]
[362069757,1747970931354,-291.74587952,0.00013368,2]
[362069758,1747970935695,-420.0,0.00013368,2]
[362069759,1747970937262,-420.0,0.00013368,2]
[362069760,1747970939363,-420.0,0.00013368,2]
[362069761,1747970942045,-420.0,0.00013368,2]
[362069762,1747970944186,-420.0,0.00013368,2]
[362069763,1747970945070,-472.3087969,0.00013368,2]
[362069764,1747970946261,-81.72422652,0.00013368,2]
[362069785,1747970953072,-20820.17733245,0.00015,2]
[362069786,1747970955064,-31429.27200432,0.00015,2]
[362069787,1747970961408,513.69,0.00026154,120]
[362069788,1747970965111,-209.47776688,0.00015923,2]
[362069789,1747970965135,-300.0,0.00016023,2]
[362069790,1747970965156,-164.63034405,0.00016024,2]
[362069791,1747970965177,-500.0,0.00016333,2]
[362069798,1747971032047,-171.94290328,0.00016973,2]
[362069799,1747971032056,-500.0,0.00016973,2]
[362069800,1747971032066,-296.92114305,0.00016973,2]
[362069801,1747971032074,-500.0,0.00016973,2]
[362069802,1747971032083,-1200.0,0.00016997,2]
[362069803,1747971032093,-200.87859387,0.00016999,5]
[362069804,1747971032102,-1317.4738771,0.00016999,5]
[362069805,1747971032111,-500.0,0.00016999,2]
[362069806,1747971032121,-500.0,0.00016999,2]
[362069807,1747971032130,-2.99512173,0.00016999,2]
[362069808,1747971032158,-497.00487827,0.00016999,2]
[362069809,1747971032167,-500.0,0.00016999,2]
[362069810,1747971032177,-500.0,0.00016999,2]
[362069811,1747971032187,-507.46178726,0.00016999,2]
[362069812,1747971032207,-500.0,0.00016999,2]
[362069813,1747971032218,-500.0,0.00016999,2]
[362069814,1747971032229,-618.7549379,0.00016999,2]
[362069815,1747971032238,-500.0,0.00016999,2]
[362069816,1747971032248,-500.0,0.00016999,2]
[362069817,1747971032258,-500.0,0.00016999,2]
[362069818,1747971032268,-500.0,0.00016999,2]
[362069819,1747971032278,-500.0,0.00016999,2]
[362069820,1747971032288,-304.42170724,0.00016999,2]
[362069821,1747971032297,-500.0,0.00016999,2]
[362069822,1747971032307,-300.0,0.00017,2]
[362069823,1747971032316,-3118.93136364,0.00017,2]
[362069824,1747971032345,-362.5,0.00016999,2]
[362069825,1747971032356,-137.5,0.00016999,2]
[362069826,1747971032366,-500.0,0.00016999,2]
[362069827,1747971032375,-218.33944016,0.00017,2]
[362069828,1747971032405,-500.0,0.00016999,2]
[362069829,1747971032414,-4009.99939518,0.00017,2]
[362069830,1747971032441,-500.0,0.00016999,2]
[362069831,1747971032451,-54490.53944337,0.00017,2]
[362069857,1747971032774,-3311.16755159,0.00017,2]
[362069858,1747971032786,-2927.62822359,0.00017,2]
[362069859,1747971032797,-16086.87249838,0.00017,2]
[362069863,1747971038029,-1815.19179832,0.00017,2]
[362069865,1747971038130,-11006.93940916,0.00017,2]
[362069866,1747971038295,-1254.20896518,0.00017,2]
[362069867,1747971038307,-1172.528378,0.00017,2]
[362069868,1747971038319,-660.22079313,0.00017,2]
[362070058,1747971040199,-67.83622482,0.00017,2]
[362070061,1747971040208,-994.58652568,0.00017,2]
[362070064,1747971040220,-405.74,0.00017,2]
[362070067,1747971040231,-56695.3197083,0.00017,2]
[362070072,1747971040244,-552.56499992,0.00017,2]
[362070075,1747971040255,-11617.46672778,0.00017,2]
[362070098,1747971040365,-598.2344667,0.00017,2]
[362070368,1747971043114,-11015.38809375,0.00017,2]
[362070388,1747971043278,-2237.44254138,0.00017,2]
[362070390,1747971043289,-1946.3216785,0.00017,2]
[362070392,1747971043300,-5345.2728,0.00017,2]
[362070401,1747971043393,-3440.96276511,0.00017,2]
[362070407,1747971043444,-454269.4480861,0.00017,2]
[362070409,1747971043453,-195.33245027,0.00017421,2]
[362070410,1747971043463,-500.0,0.00017521,2]
[362070412,1747971043472,-726.85381076,0.00017521,2]
[362070414,1747971043482,-6770.03137026,0.00018049,2]
[362070416,1747971043491,-1680.0,0.00018657,2]
[362070418,1747971043501,-200.0,0.0001867,2]
[362070419,1747971043510,-151.0,0.00018677,2]
[362070421,1747971043519,-151.0,0.00018743,2]
[362070423,1747971043530,-350.0,0.00019,2]
[362070425,1747971043539,-6770.03137022,0.00019921,2]
[362070427,1747971043548,-265.31,0.00020187,2]
[362070429,1747971043557,-206.59019185,0.000202,2]
[362070431,1747971043566,-206.59019176,0.000202,2]
[362070432,1747971043575,-206.59019176,0.000202,2]
[362070434,1747971043584,-206.59019176,0.000202,2]
[362070436,1747971043593,-1212.0,0.00020479,2]
[362070438,1747971043602,-536.0,0.00020523,2]
[362070439,1747971043611,-400.0,0.00021,2]
[362070440,1747971043621,-206.59019176,0.0002106,4]
[362070442,1747971043630,-6770.03137022,0.00021794,2]
[362070443,1747971043639,-206.59019176,0.000221,6]
[362070445,1747971043649,-450.0,0.00023,2]
[362070447,1747971043658,-206.59019176,0.0002314,8]
[362070449,1747971043667,-513.69,0.00023248,2]
[362070451,1747971043676,-6770.03137022,0.00023666,2]
[362070453,1747971043687,-2448.24553771,0.00024,5]
[362070454,1747971043695,-206.59019176,0.0002418,10]